[Event "Cabo Verde Open 2022"]
[Site "Mindelo-S. Vicente"]
[Date "2022.04.30"]
[Round "8.2"]
[White "Santiago, Yago De Moura"]
[Black "Galego, Luis"]
[Result "1-0"]
[ECO "E41"]
[WhiteElo "2490"]
[BlackElo "2474"]
[Annotator "TA"]
[PlyCount "164"]
[EventDate "2022.04.22"]
[EventType "swiss"]
[SourceTitle "playchess.com"]
[Source "ChessBase"]
[SourceQuality "1"]
[TimeControl "40/5400+30:1800+30"]

{[%evp 34,164,50,45,0,0,0,0,0,0,0,0,2,-10,-18,-22,0,0,0,0,0,0,0,-30,-9,-25,-25,-14,-16,-14,-21,-116,0,-18,0,0,57,57,25,33,34,30,61,20,37,37,30,44,55,55,158,165,379,387,388,379,460,338,325,328,552,552,909,906,967,966,934,855,930,855,1537,1646,1699,1642,1276,1141,4598,3064,12823,5181,1758,1208,1208,1208,1208,1143,29962,29965,29952,5193,4710,978,964,850,29966,12844,29975,29975,29971,29968,29965,5700,29967,29965,29974,29958,29977,29977,29976,29978,29977,29975,29978,29979,29980,29980,29981,29981,29982,29981,29981,29980,29979,29980,29980,29980,29979,29980,29980,29981,29981,29980,29981]} 1. d4 {[%emt 0:00:26]} Nf6 {[%emt 0:00:21]} 2. c4 {[%emt 0:00:38]} e6 {[%emt 0:01:37]} 3. Nc3 {[%emt 0:00:17]} Bb4 {[%emt 0:00:07]} 4. e3 {[%emt 0:00:20]} c5 {[%emt 0:01:23]} 5. Bd3 {[%emt 0:00:47]} Bxc3+ {[%emt 0:01:14]} 6. bxc3 {[%emt 0:00:12]} d6 {[%emt 0:00:22]} 7. Ne2 {[%emt 0:02:59]} Nc6 {[%emt 0:02:02]} 8. O-O {[%emt 0:02:00]} e5 {[%emt 0:03:27]} 9. e4 {[%emt 0:00:58]} h6 {[%emt 0:11:17]} 10. dxc5 {[%emt 0:21:14]} dxc5 {[%emt 0:00:36]} 11. Ng3 {[%emt 0:00:09]} Be6 {[%emt 0:03:15]} 12. Qe2 {[%emt 0:01:26]} Qa5 {[%emt 0:04:46]} 13. Bb2 {[%emt 0:09:07]} Qa4 {[%emt 0:14:08]} 14. Rfd1 {[%emt 0:03:52]} Na5 {[%emt 0:02:14]} 15. Bc2 {[%emt 0:04:44]} Qc6 {[%emt 0:02:01]} 16. Rd5 {[%emt 0:02:37]} O-O {[%emt 0:00:45]} 17. Rad1 {[%emt 0:02:55]} Bxd5 {[%emt 0:13:26]} 18. cxd5 {[%emt 0:00:54]} Qa6 $1 {[%emt 0:01:58]} 19. c4 {[%emt 0:20:04]} Nxc4 {[%emt 0:08:37]} 20. Bd3 {[%emt 0:00:10]} b5 {[%emt 0:00:20]} 21. Bxc4 {[%emt 0:00:08]} bxc4 {[%emt 0:00:03]} 22. Bxe5 {[%emt 0:00:10]} Rfe8 {[%emt 0:01:17]} 23. Bxf6 {[%emt 0:03:26]} Qxf6 {[%emt 0:00:29]} 24. Qxc4 {[%emt 0:00:34]} Qd6 {[%emt 0:05:32]} 25. Nf5 {[%emt 0:12:39]} Qf4 {[%emt 0:01:34]} 26. Qc3 $1 {[%emt 0:00:34]} Qe5 $1 {[%emt 0:00:34]} 27. Qxe5 {[%emt 0:01:13]} Rxe5 {[%emt 0:00:01]} 28. Nd6 {[%emt 0:00:47]} Re7 {[%emt 0:10:31]} 29. f3 {[%emt 0:00:31]} Rb8 {[%emt 0:00:48]} 30. Rd2 {[%emt 0:04:38]} Rb4 {[%emt 0:02:03]} 31. Kf2 {[%emt 0:02:11]} Rd7 {[%emt 0:00:44]} 32. e5 {[%emt 0:01:22]} (32. Nf5 $11) 32... Re7 {[%emt 0:05:36]} (32... f6 $1 $17 {[%cal Rf6e5]} 33. a3 Ra4) 33. a3 {[%emt 0:01:40]} Ra4 {[%emt 0:00:52]} 34. Nf5 $1 {[%emt 0:00:36]} Rd7 {[%emt 0:00:29]} (34... Rxe5 $2 35. d6 $1 Re8 36. d7 $18) ({Black should play} 34... Re8 $1 $11) 35. Rb2 $1 $14 {[%emt 0:00:43]} Rd8 {[%emt 0:02:03]} 36. Ne7+ {[%emt 0:00:44]} Kh7 {[%emt 0:00:24]} 37. d6 {[%emt 0:00:18]} Rd7 {[%emt 0:00:59]} 38. Nc6 {[%emt 0:00:32]} c4 {[%emt 0:00:34]} 39. Rb4 {[%emt 0:00:51]} Rxa3 {[%emt 0:00:46]} 40. Rxc4 {[%emt 0:00:00]} Ra2+ {[%emt 0:00:00]} 41. Kg3 {[%emt 0:03:34]} Re2 {[%emt 0:09:38]} (41... a5 $14) 42. f4 $1 $16 {[%emt 0:02:44]} Rb7 $2 {[%emt 0:01:22]} (42... g6 43. Nd4 Rd2) 43. Kf3 $18 {[%emt 0:02:12]} Rd2 {[%emt 0:00:25]} 44. Nd4 {[%emt 0:04:43]} a5 {[%emt 0:10:45]} 45. Ke3 {[%emt 0:10:00]} Rd1 {[%emt 0:05:49]} 46. Ke2 $1 {[%emt 0:03:01]} ({Worse is} 46. Rc7 Rxc7 47. dxc7 Rc1 $17) 46... Ra1 $2 {[%emt 0:00:39] [#]} (46... Rdb1 47. f5 Rd7) 47. f5 $1 $18 {[%emt 0:00:51]} (47. Rc7 Rxc7 48. dxc7 Rc1 $17) 47... a4 {[%emt 0:04:07]} 48. e6 {[%emt 0:00:19]} ({Not} 48. Rc7 Rxc7 49. dxc7 Rc1 $17) 48... a3 {[%emt 0:00:28]} 49. e7 {[%emt 0:03:18]} a2 {[%emt 0:00:01]} 50. Ra4 {[%emt 0:00:15]} Rb2+ {[%emt 0:00:13]} 51. Kf3 {[%emt 0:00:26]} Rf1+ {[%emt 0:00:55]} 52. Kg3 {[%emt 0:00:09]} Rb4 {[%emt 0:02:18]} 53. Rxa2 {[%emt 0:01:23]} ({Weaker is} 53. Rxb4 a1=Q 54. Nf3 (54. e8=Q Qc3+ 55. Nf3 Qxb4 $17) 54... Rxf3+ 55. gxf3 (55. Kxf3 Qc3+ 56. Kf2 Qc8 $11) 55... Qe1+ 56. Kh3 Qf1+ 57. Kg3 Qe1+ 58. Kh3 Qf1+ 59. Kg3 Qe1+ $11) 53... Rxd4 {[%emt 0:00:17]} 54. e8=Q {[%emt 0:00:10]} Rd3+ {[%emt 0:00:19] [#]} 55. Kg4 $1 {[%emt 0:00:55]} Rd4+ {[%emt 0:00:06]} 56. Kh3 {[%emt 0:00:28]} Rxf5 {[%emt 0:00:14]} 57. d7 {[%emt 0:04:32]} Rh5+ {[%emt 0:00:29]} 58. Kg3 {[%emt 0:00:04]} Rg5+ {[%emt 0:01:12]} 59. Kf2 {[%emt 0:00:48]} Rf5+ {[%emt 0:00:49]} 60. Ke3 {[%emt 0:00:17]} Rfd5 {[%emt 0:00:08]} 61. Qxf7 {[%emt 0:00:12]} Rxd7 {[%emt 0:00:05]} 62. Qe6 {[%emt 0:00:41]} R4d6 {[%emt 0:01:06]} 63. Qe4+ {[%emt 0:00:10]} g6 {[%emt 0:00:01]} 64. h3 {[%emt 0:01:03]} (64. Ra8 $142 Rd1 65. Qc4 R1d5 66. Ke4 Kg7 67. Qxd5 Rxd5 68. Kxd5 Kf6 69. Ke4) 64... Rf6 {[%emt 0:01:09]} 65. Ra8 {[%emt 0:00:31]} Rff7 {[%emt 0:00:02]} 66. Re8 {[%emt 0:00:15]} Ra7 {[%emt 0:00:11]} 67. Qb4 {[%emt 0:00:33]} (67. Qe5 $142 Rg7 68. Qd6 Rgf7 69. Qd8 Ra3+ 70. Kd4 Ra4+ 71. Kd3 Ra3+ 72. Ke2 Ra2+ 73. Ke3 Ra3+ 74. Kd4 Ra4+ 75. Kc3 Ra3+ 76. Kb4) 67... h5 {[%emt 0:00:46]} 68. Qb2 {[%emt 0:00:33]} Rg7 {[%emt 0:00:57]} 69. Qb8 {[%emt 0:00:41]} Rae7+ {[%emt 0:00:42]} 70. Rxe7 {[%emt 0:00:08]} Rxe7+ {[%emt 0:00:05]} 71. Kf4 {[%emt 0:00:47]} Rf7+ {[%emt 0:00:01]} 72. Ke5 {[%emt 0:00:32]} Rf5+ {[%emt 0:00:53]} 73. Ke6 {[%emt 0:00:09]} Rf1 {[%emt 0:00:22]} 74. Qa7+ {[%emt 0:00:43]} Kh6 {[%emt 0:00:05]} 75. Qe3+ {[%emt 0:00:12]} Kh7 {[%emt 0:00:05]} 76. Qd2 {[%emt 0:00:56]} Kg7 {[%emt 0:00:17]} 77. Qd7+ {[%emt 0:00:27]} Kh6 {[%emt 0:00:03]} 78. Qd3 {[%emt 0:00:09]} Rf8 {[%emt 0:00:16]} 79. Ke7 {[%emt 0:00:22]} Rf5 {[%emt 0:00:10]} 80. Qxf5 {[%emt 0:00:38]} gxf5 {[%emt 0:00:03]} 81. Kf6 {[%emt 0:00:05]} f4 {[%emt 0:00:06]} 82. Kf5 {[%emt 0:00:10]} Kg7 {[%emt 0:00:51]} 1-0

[Event "Cabo Verde Open 2022"]
[Site "Mindelo-S. Vicente"]
[Date "2022.04.30"]
[Round "8.3"]
[White "Strikovic, Aleksa"]
[Black "Maisuradze, Nino"]
[Result "1-0"]
[ECO "E01"]
[WhiteElo "2489"]
[BlackElo "2202"]
[Annotator "TA"]
[PlyCount "97"]
[EventDate "2022.04.22"]
[EventType "swiss"]
[SourceTitle "playchess.com"]
[Source "ChessBase"]
[SourceQuality "1"]
[TimeControl "40/5400+30:1800+30"]

{[%evp 15,97,14,28,20,21,33,56,55,55,52,60,41,62,36,43,37,36,34,40,39,39,41,39,29,31,35,31,26,28,0,17,0,8,0,11,6,19,15,17,19,19,26,19,19,19,8,8,0,12,0,0,0,0,0,0,0,0,0,19,4,15,0,72,51,364,350,347,311,502,450,711,847,838,773,798,734,1364,1240,1814,1909,3416,2754,1895,1670]} 1. Nf3 {[%emt 0:00:04]} d5 {[%emt 0:03:21]} 2. c4 {[%emt 0:00:06]} e6 {[%emt 0:02:48]} 3. g3 {[%emt 0:00:22]} Nf6 {[%emt 0:00:34]} 4. Bg2 {[%emt 0:00:12]} Nbd7 {[%emt 0:04:53]} 5. O-O {[%emt 0:00:36]} c6 {[%emt 0:00:37]} 6. d4 {[%emt 0:03:43]} Bd6 {[%emt 0:12:32]} 7. Qc2 {[%emt 0:11:59]} O-O {[%emt 0:01:17]} 8. Nbd2 {[%emt 0:18:42][%cal Bb1d2,Bd2e4,Be4c3][%mdl 32]} Re8 {[%emt 0:02:46]} 9. b3 {[%emt 0:12:08] E01: Catalan: Early deviations.} a5 {[%emt 0:03:34]} 10. Bb2 {[%emt 0:06:16]} Qc7 {[%emt 0:05:52]} 11. e4 {[%emt 0:05:19] White is slightly better.} dxe4 {[%emt 0:05:09]} 12. Nxe4 {[%emt 0:00:08] [#]} Be7 $146 {[%emt 0:04:02]} ({Predecessor:} 12... Nxe4 13. Qxe4 Nf6 14. Qc2 a4 15. Rfe1 Be7 16. Rad1 Rd8 17. Bc3 axb3 18. axb3 Qb6 {0-1 (44) Yalcin,O (1880)-Narman,G (1969) Konya 2017}) 13. Nc3 {[%emt 0:07:01]} b6 {[%emt 0:05:41]} 14. Rad1 {[%emt 0:04:36][%cal Of3e5]} (14. Ne5 {with more complications.} Bb7 15. f4 c5 16. Ba3) 14... Bb7 {[%emt 0:00:45]} 15. Bc1 {[%emt 0:03:26]} Rad8 {[%emt 0:00:47]} 16. Bf4 {[%emt 0:07:06]} Bd6 {[%emt 0:01:13]} 17. Bxd6 {[%emt 0:00:12]} Qxd6 {[%emt 0:00:02]} 18. Rfe1 {[%emt 0:00:18]} c5 {[%emt 0:02:56]} 19. d5 {[%emt 0:03:12]} exd5 {[%emt 0:02:41]} 20. Rxe8+ {[%emt 0:00:07]} Rxe8 {[%emt 0:00:09]} 21. cxd5 {[%emt 0:00:02]} Ba6 {[%emt 0:03:23]} (21... Bxd5 $2 22. Ng5 Qe5 23. Rxd5 $18) 22. a4 {[%emt 0:00:51]} Ne5 {[%emt 0:02:27]} 23. Nxe5 {[%emt 0:00:06]} Rxe5 {[%emt 0:04:11]} 24. Qd2 {[%emt 0:05:14]} Re8 {[%emt 0:04:03]} 25. Bf1 {[%emt 0:01:24]} Bxf1 {[%emt 0:00:13]} 26. Kxf1 {[%emt 0:03:01]} Rd8 {[%emt 0:03:19]} 27. Qd3 {[%emt 0:00:26]} h6 {[%emt 0:02:43]} 28. Kg2 {[%emt 0:00:36]} Rd7 {[%emt 0:02:01]} 29. Kg1 {[%emt 0:01:42][%cal Bg2g1,Bg1f1,Bf1e2,Be2e3,Be3f4,Bf4e5][%mdl 32]} Rd8 {[%emt 0:01:01]} 30. Qf5 {[%emt 0:01:02]} Qd7 {[%emt 0:01:11]} 31. Qxd7 {[%emt 0:00:56]} Rxd7 $11 {[%emt 0:00:08][%mdl 4096] Endgame KRN-KRN} 32. Kf1 {[%emt 0:01:32]} Kf8 {[%emt 0:00:45]} 33. Ke2 {[%emt 0:01:42]} Ke7 {[%emt 0:00:06]} 34. h3 {[%emt 0:00:06]} h5 {[%emt 0:12:17]} 35. f3 {[%emt 0:00:35]} Rd8 {[%emt 0:02:58]} 36. Ke3 {[%emt 0:00:24]} Rd7 {[%emt 0:02:04]} 37. Kf4 {[%emt 0:00:12]} Rd8 {[%emt 0:00:19]} 38. h4 {[%emt 0:00:33]} g6 {[%emt 0:00:51]} (38... Rc8 $11 {remains equal.}) 39. g4 {[%emt 0:01:10][%cal Bg3g4,Bg4g5][%mdl 32]} Rd7 $2 {[%emt 0:03:42][%mdl 8192] [#] Black cannot hold the game after this.} ({Better is} 39... hxg4 $14 40. fxg4 Rb8) 40. g5 $18 {[%emt 0:00:00]} Ne8 {[%emt 0:00:00]} 41. Ne4 {[%emt 0:09:41]} Nd6 $2 {[%emt 0:09:09]} (41... Kd8 42. d6 Kc8) 42. Ke5 {[%emt 0:07:39] White is clearly winning.} Rd8 {[%emt 0:04:10]} (42... Nf5 $142 43. d6+ Kf8) 43. Nxd6 {[%emt 0:02:36]} Rxd6 {[%emt 0:00:02] KR-KR} 44. f4 {[%emt 0:00:07]} Kd7 {[%emt 0:10:12]} 45. Rf1 {[%emt 0:02:06] [#] Hoping for f5.} Ke7 {[%emt 0:01:53]} 46. f5 {[%emt 0:02:07] And now fxg6 would win.} gxf5 {[%emt 0:04:21]} 47. Rxf5 {[%emt 0:00:32]} Rd7 {[%emt 0:01:40]} 48. d6+ {[%emt 0:02:04]} Ke8 {[%emt 0:00:01]} 49. Kd5 {[%emt 0:00:11] Weighted Error Value: White=0.05 (flawless) /Black=0.34} 1-0

[Event "Cabo Verde Open 2022"]
[Site "Mindelo-S. Vicente"]
[Date "2022.04.30"]
[Round "8.4"]
[White "Fernandes, Antonio"]
[Black "Caxita, Esperanca"]
[Result "1-0"]
[ECO "B01"]
[WhiteElo "2313"]
[BlackElo "1910"]
[Annotator "TA"]
[PlyCount "53"]
[EventDate "2022.04.22"]
[EventType "swiss"]
[SourceTitle "playchess.com"]
[Source "ChessBase"]
[SourceQuality "1"]
[TimeControl "40/5400+30:1800+30"]

{[%evp 9,53,30,66,67,69,76,96,104,97,79,125,121,117,118,123,126,121,104,153,143,137,131,171,162,198,214,238,160,238,245,248,218,303,327,353,192,352,354,401,397,399,377,606,608,756,718]} 1. e4 {[%emt 0:09:57]} d5 {[%emt 0:00:26]} 2. exd5 {[%emt 0:01:02]} Qxd5 {[%emt 0:00:15]} 3. Nc3 {[%emt 0:05:08]} Qd6 {[%emt 0:00:58]} 4. d4 {[%emt 0:02:42]} a6 {[%emt 0:05:10]} 5. Nge2 {[%emt 0:09:36]} Nc6 {[%emt 0:05:15]} 6. Bf4 {[%emt 0:02:09] B01: Scandinavian Defence.} e5 {[%emt 0:09:05]} 7. dxe5 {[%emt 0:01:46]} Nxe5 {[%emt 0:00:27] [#]} 8. Qxd6 $146 {[%emt 0:02:12] White is better.} ({Predecessor:} 8. Ne4 Qb4+ 9. N2c3 Bf5 10. Qd5 Ne7 11. Qxe5 Bxe4 12. O-O-O Bc6 13. a3 f6 14. Qxc7 {1-0 (31) Lomakina,A (1654)-Kanteraki,M (1368) Prague 2016}) 8... Bxd6 {[%emt 0:00:46] [#]} 9. Ne4 {[%emt 0:00:29]} Be6 {[%emt 0:04:04]} ({Better is} 9... Nf6 10. Nxd6+ cxd6) 10. Nxd6+ $16 {[%emt 0:03:11]} cxd6 {[%emt 0:00:37]} 11. O-O-O {[%emt 0:02:03]} Ke7 {[%emt 0:02:30]} 12. Nc3 {[%emt 0:11:34]} Nf6 {[%emt 0:01:47] Prevents Ne4.} 13. Bg5 {[%emt 0:03:24]} Ned7 {[%emt 0:09:49]} (13... h6 $142 14. Bxf6+ Kxf6) 14. f4 {[%emt 0:05:24] White is more active.} h6 {[%emt 0:09:13]} 15. Bh4 {[%emt 0:01:20]} Rhc8 {[%emt 0:03:07]} 16. Be2 {[%emt 0:02:44]} Rab8 {[%emt 0:21:39]} 17. Rhe1 {[%emt 0:03:41]} Rc5 {[%emt 0:07:07]} 18. Ne4 {[%emt 0:16:49]} Ra5 {[%emt 0:02:50]} (18... Rd5 $16 {is a better defense.} 19. Bf3 Rxd1+ 20. Rxd1 d5) 19. Nxd6 $18 {[%emt 0:01:05][%cal Of4f5] Threatens to win with f5!} ({Don't do} 19. Rxd6 $6 Rxa2 20. Kb1 Ra5 $16) 19... Rxa2 {[%emt 0:04:48] [#] And now ...Ra1+ would win.} 20. Kb1 {[%emt 0:01:10] Prevents Ra1+.} Ra4 {[%emt 0:03:19]} 21. b3 {[%emt 0:04:26]} Rb4 {[%emt 0:01:49]} 22. Bf3 {[%emt 0:03:16]} (22. Bg3 $142) 22... Kf8 $2 {[%emt 0:03:46]} (22... Rxf4 {was worth a try.} 23. Bg3 Rxf3) 23. Bg3 {[%emt 0:00:56]} Nc5 {[%emt 0:02:22]} 24. f5 {[%emt 0:00:50]} Bd7 {[%emt 0:00:29]} 25. Nb5 {[%emt 0:03:24]} Rc8 $2 {[%emt 0:00:37]} (25... Rd8 26. Bd6+ Kg8) 26. Na7 {[%emt 0:00:24]} Re8 {[%emt 0:00:43]} 27. Bd6+ {[%emt 0:00:11] Weighted Error Value: White=0.14 (very precise) /Black=0.53} 1-0

[Event "Cabo Verde Open 2022"]
[Site "Mindelo-S. Vicente"]
[Date "2022.04.30"]
[Round "8.5"]
[White "L`Ami, Alina"]
[Black "Ferreira, Paulo"]
[Result "1-0"]
[ECO "A55"]
[WhiteElo "2287"]
[BlackElo "2073"]
[Annotator "TA"]
[PlyCount "147"]
[EventDate "2022.04.22"]
[EventType "swiss"]
[SourceTitle "playchess.com"]
[Source "ChessBase"]
[SourceQuality "1"]
[TimeControl "40/5400+30:1800+30"]

{[%evp 18,147,58,54,74,72,81,57,95,73,95,74,87,72,72,58,118,90,92,60,72,63,87,86,72,68,87,47,123,125,132,122,136,37,35,23,23,29,25,18,15,18,27,22,50,39,73,40,45,33,53,38,176,180,192,186,170,17,52,46,48,32,32,31,31,31,31,31,35,22,88,32,26,29,25,23,76,76,76,20,21,21,67,66,64,43,43,43,68,68,68,68,68,46,46,41,43,43,76,76,76,76,76,76,76,76,76,76,76,76,76,76,76,64,76,76,78,77,287,269,269,264,947,897,29946,29938,29974,29975,29972,29974,29988,29989]} 1. d4 {[%emt 0:00:03]} Nf6 {[%emt 0:00:14]} 2. c4 {[%emt 0:00:09]} d6 {[%emt 0:00:16]} 3. Nc3 {[%emt 0:00:31]} Nbd7 {[%emt 0:00:23]} 4. e4 {[%emt 0:00:37]} e5 {[%emt 0:00:15]} 5. Nf3 {[%emt 0:00:27]} c6 {[%emt 0:00:46]} 6. Be2 {[%emt 0:00:43]} Be7 {[%emt 0:00:23]} 7. O-O {[%emt 0:00:18]} O-O {[%emt 0:00:19]} 8. Qc2 {[%emt 0:00:31]} Re8 {[%emt 0:00:54]} 9. Be3 {[%emt 0:04:14]} Qc7 {[%emt 0:04:14]} 10. h3 {[%emt 0:03:40]} Bf8 {[%emt 0:02:26] A55: Old Indian Defence with Nf3 and e4.} 11. d5 {[%emt 0:07:08] [#]} Nh5 $146 {[%emt 0:07:59]} ({Predecessor:} 11... a5 12. a3 Nb6 13. Nd2 g6 14. dxc6 bxc6 15. b4 Be6 16. c5 Nbd7 17. cxd6 Bxd6 18. bxa5 Rxa5 {½-½ (80) Anchutin,N (2219)-Tsoi,D (2361) St Petersburg 2017}) 12. g3 {[%emt 0:05:39][%cal Bg2g3,Bg3g4][%mdl 32]} g6 {[%emt 0:04:59] White is slightly better.} 13. Kh2 {[%emt 0:08:48]} Ndf6 {[%emt 0:03:46]} 14. Ng1 {[%emt 0:04:38]} Ng7 {[%emt 0:07:02]} 15. g4 {[%emt 0:09:22]} Qe7 {[%emt 0:10:14]} 16. f3 {[%emt 0:06:00]} Kh8 {[%emt 0:03:34]} (16... h5 $14) 17. Bd3 {[%emt 0:07:34]} Nd7 {[%emt 0:07:33]} 18. b4 {[%emt 0:02:40] Against Nc5} a5 {[%emt 0:02:19]} 19. a3 {[%emt 0:00:13]} (19. b5 {is interesting.} Nc5 20. Rab1 Qd8 21. bxc6 bxc6 22. Bxc5 dxc5 23. Na4) 19... axb4 {[%emt 0:00:20]} 20. axb4 {[%emt 0:00:03]} Rxa1 {[%emt 0:00:08]} 21. Rxa1 {[%emt 0:00:02]} f5 {[%emt 0:05:04]} 22. exf5 {[%emt 0:05:06] White is much more active. The black rooks are badly placed.} gxf5 {[%emt 0:04:14]} (22... e4 $1 $14 23. Bxe4 (23. fxe4 gxf5 24. dxc6 bxc6 $11) 23... gxf5) 23. Bxf5 $16 {[%emt 0:05:53]} (23. gxf5 $6 e4 24. Bxe4 (24. fxe4 Nxf5 25. Bf4 Bh6 $11) 24... cxd5 $14) 23... Nxf5 {[%emt 0:11:23]} 24. Qxf5 {[%emt 0:00:08]} (24. gxf5 $6 Qf7 $11) 24... Nf6 {[%emt 0:00:14]} 25. Qg5 {[%emt 0:03:54]} (25. Qd3 $16) 25... cxd5 $14 {[%emt 0:01:03]} 26. Nxd5 {[%emt 0:02:31]} Nxd5 {[%emt 0:00:24]} 27. cxd5 {[%emt 0:00:02] aiming for Qxe7.} Qf7 {[%emt 0:00:35]} 28. Qh5 {[%emt 0:05:04]} Qxh5 {[%emt 0:05:16]} 29. gxh5 {[%emt 0:00:02]} Bf5 {[%emt 0:01:11]} 30. Ra7 {[%emt 0:03:13]} Re7 {[%emt 0:02:54]} 31. Ne2 {[%emt 0:04:43] Black must now prevent Ng3.} Bd3 {[%emt 0:04:09]} 32. Ng3 {[%emt 0:01:21]} Rf7 {[%emt 0:02:30]} 33. Kg2 {[%emt 0:02:02]} Bc4 {[%emt 0:01:17]} 34. Ra5 {[%emt 0:00:21]} b6 {[%emt 0:01:30]} (34... h6 $14) 35. Bxb6 $18 {[%emt 0:00:33]} Rb7 {[%emt 0:01:04] [#]} 36. Be3 {[%emt 0:02:59]} ({Resist} 36. Ra8 $6 Rf7 $16) 36... Rxb4 {[%emt 0:01:17]} 37. Ne4 $2 {[%emt 0:02:30]} (37. Ra8 $18 Kg7 38. Nf5+ Kf7 39. Ra7+ Kf6 40. Rxh7) 37... Rb7 {[%emt 0:03:50]} 38. Ra8 {[%emt 0:01:25][%csl LRd6,LRf8]} Kg7 {[%emt 0:00:28]} 39. h6+ {[%emt 0:01:21]} Kf7 {[%emt 0:01:17]} 40. Ng5+ {[%emt 0:00:00]} Kg8 {[%emt 0:00:00]} 41. Ne6 {[%emt 0:06:33][%csl Ge6][%cal Ra8f8] [#]} Rf7 {[%emt 0:01:53][%cal Of7f3]} 42. Ra5 {[%emt 0:00:50]} Rf5 {[%emt 0:05:11]} 43. h4 {[%emt 0:11:52]} Kf7 {[%emt 0:02:56]} (43... Be2 $11) 44. Bg5 {[%emt 0:02:45]} (44. Kg3 $16 {Strongly threatening Kg4.} Be2 45. Ra7+ Kg8 46. Nxf8 (46. f4 Bxh6 47. Rd7 Rf6 $14) 46... Rxf3+ 47. Kh2 Kxf8 48. Bg5) 44... Kg6 $14 {[%emt 0:01:56]} 45. Nxf8+ {[%emt 0:07:37]} Rxf8 $11 {[%emt 0:00:27][%mdl 4096] Endgame KRB-KRB} 46. Be7 {[%emt 0:01:06]} Rf5 {[%emt 0:04:04]} (46... Rg8 $11) 47. Bxd6 $16 {[%emt 0:00:31]} Be2 {[%emt 0:00:28]} 48. Bc7 {[%emt 0:01:21]} (48. Be7 $16) 48... Bxf3+ $11 {[%emt 0:02:00]} 49. Kg3 {[%emt 0:00:08][%cal Oc7e5]} Bh5 {[%emt 0:12:02]} (49... Be4 $11) 50. d6 {[%emt 0:02:15] And now d7 would win.} Rf3+ {[%emt 0:01:58]} 51. Kg2 {[%emt 0:00:02]} Rd3 {[%emt 0:00:50]} 52. Rxe5 {[%emt 0:00:35]} Bf3+ {[%emt 0:00:19]} 53. Kf2 {[%emt 0:00:19] Rg5+ is the strong threat.} Bc6 {[%emt 0:00:01]} 54. Re6+ {[%emt 0:03:01]} Kf5 {[%emt 0:01:33]} 55. Re1 {[%emt 0:01:03]} (55. Re3 $5 {[%cal Re3d3]} Rd4 56. Rc3 Rf4+ 57. Ke3 Re4+ 58. Kf2 Rf4+ 59. Kg3 Rg4+ 60. Kf2 Rf4+ $14) 55... Kg6 {[%emt 0:00:38]} 56. Rc1 {[%emt 0:01:08]} Bd7 {[%emt 0:01:29]} 57. Ke2 {[%emt 0:00:31]} Rd5 {[%emt 0:00:33]} 58. Ke3 {[%emt 0:00:27]} Kf6 {[%emt 0:02:28]} 59. Rg1 {[%emt 0:00:47]} Bf5 {[%emt 0:00:38]} 60. Rg8 {[%emt 0:00:29]} Rd3+ {[%emt 0:00:22]} 61. Ke2 {[%emt 0:00:06]} Rd5 {[%emt 0:00:12]} 62. Bd8+ {[%emt 0:00:36]} Kf7 {[%emt 0:00:39]} 63. Rg7+ {[%emt 0:00:11]} Ke6 {[%emt 0:00:27]} 64. Be7 {[%emt 0:00:14]} Rd4 {[%emt 0:00:55]} 65. Bf8 {[%emt 0:00:21]} Kf6 {[%emt 0:00:34]} 66. Ra7 {[%emt 0:00:38]} Kg6 {[%emt 0:00:25]} 67. Ke3 {[%emt 0:01:06]} Rd3+ $2 {[%emt 0:00:15]} (67... Rxh4 $16 {is a better defense.} 68. Rg7+ (68. d7 Re4+ 69. Kf3 Rd4 $14) 68... Kh5) 68. Kf4 $18 {[%emt 0:00:17][%cal Oh4h5] Hoping for h5+!} Rd5 {[%emt 0:00:27]} 69. Bg7 {[%emt 0:00:59]} Kh5 $2 {[%emt 0:00:32]} (69... Be6 70. Re7 Bc8) 70. Be5 {[%emt 0:00:23]} Bd3 {[%emt 0:00:42]} 71. d7 {[%emt 0:00:29] White mates.} Kg6 {[%emt 0:00:25]} 72. Rb7 {[%emt 0:00:30]} Kh5 {[%emt 0:00:31]} 73. Bf6 {[%emt 0:00:33]} Ba6 {[%emt 0:00:43]} 74. Ra7 {[%emt 0:00:28] Weighted Error Value: White=0.20 (precise) /Black=0.21 (precise)} 1-0